[Event "Titled Tuesday Blitz November 07 Early 2023"]
[White "Kalogeris, Ioannis"]
[Black "MKlose11"]
[WhiteFideId "4239563"]
[WhiteElo "2554"]
[BlackElo "2720"]
[Result "1-0"]
[Round "5"]
[TimeControl "180+1"]
[Date "2023.11.07"]
[WhiteClock "0:00:03"]
[BlackClock "0:00:41"]
[Board "59"]

1. e4 {[%clk 0:03:00]}  e6 {[%clk 0:02:56]} 2. d4 {[%clk 0:03:00]}  d5 {[%clk 0:02:54]} 3. Nc3 {[%clk 0:03:00]}  Bb4 {[%clk 0:02:52]} 4. e5 {[%clk 0:02:56]}  Ne7 {[%clk 0:02:51]} 5. Qg4 {[%clk 0:02:52]}  Nf5 {[%clk 0:02:34]} 6. Bd3 {[%clk 0:02:44]}  Bf8 {[%clk 0:02:30]} 7. Nf3 {[%clk 0:02:37]}  c5 {[%clk 0:02:29]} 8. dxc5 {[%clk 0:02:32]}  Nc6 {[%clk 0:02:27]} 9. Nb5 {[%clk 0:02:22]}  h5 {[%clk 0:02:14]} 10. Qf4 {[%clk 0:02:22]}  Bxc5 {[%clk 0:02:12]} 11. Bd2 {[%clk 0:01:11]}  Nce7 {[%clk 0:02:02]} 12. b4 {[%clk 0:00:46]}  Bb6 {[%clk 0:01:59]} 13. Nd6+ {[%clk 0:00:37]}  Nxd6 {[%clk 0:01:57]} 14. exd6 {[%clk 0:00:38]}  Nf5 {[%clk 0:01:52]} 15. Bxf5 {[%clk 0:00:33]}  exf5 {[%clk 0:01:53]} 16. O-O {[%clk 0:00:33]}  Be6 {[%clk 0:01:46]} 17. Bc3 {[%clk 0:00:31]}  Rg8 {[%clk 0:01:41]} 18. Rae1 {[%clk 0:00:30]}  Qd7 {[%clk 0:01:38]} 19. Qxf5 {[%clk 0:00:16]}  O-O-O {[%clk 0:01:37]} 20. Qxh5 {[%clk 0:00:13]}  Bg4 {[%clk 0:01:27]} 21. Qxd5 {[%clk 0:00:13]}  Qxd6 {[%clk 0:01:24]} 22. Qxd6 {[%clk 0:00:09]}  Rxd6 {[%clk 0:01:25]} 23. Ne5 {[%clk 0:00:10]}  Be6 {[%clk 0:01:24]} 24. Nd3 {[%clk 0:00:09]}  Bxa2 {[%clk 0:01:21]} 25. Re7 {[%clk 0:00:09]}  Bc4 {[%clk 0:01:19]} 26. Ra1 {[%clk 0:00:06]}  g6 {[%clk 0:01:12]} 27. Be5 {[%clk 0:00:05]}  Re6 {[%clk 0:01:05]} 28. Rxe6 {[%clk 0:00:05]}  Bxe6 {[%clk 0:01:06]} 29. Nc5 {[%clk 0:00:03]}  Bc4 {[%clk 0:01:04]} 30. Na4 {[%clk 0:00:03]}  Bc7 {[%clk 0:00:51]} 31. Bxc7 {[%clk 0:00:02]}  Kxc7 {[%clk 0:00:52]} 32. Nc5 {[%clk 0:00:02]}  a6 {[%clk 0:00:50]} 33. f3 {[%clk 0:00:02]}  Rd8 {[%clk 0:00:50]} 34. Ne4 {[%clk 0:00:02]}  f5 {[%clk 0:00:48]} 35. Nc5 {[%clk 0:00:02]}  Rd2 {[%clk 0:00:48]} 36. Rc1 {[%clk 0:00:03]}  b6 {[%clk 0:00:46]} 37. Nb3 {[%clk 0:00:03]}  Kc6 {[%clk 0:00:43]} 38. Nxd2 {[%clk 0:00:03]}  Bd5 {[%clk 0:00:41]} 39. g4 {[%clk 0:00:03]} 1-0


[Site "https://www.chess.com"]

[Event "Titled Tuesday Blitz November 07 Early 2023"]
[White "Slade, Theodore"]
[Black "De Silva, L M S T"]
[WhiteFideId "426547"]
[BlackFideId "9953698"]
[WhiteElo "2543"]
[BlackElo "2718"]
[Result "0-1"]
[Round "5"]
[TimeControl "180+1"]
[Date "2023.11.07"]
[WhiteClock "0:00:03"]
[BlackClock "0:00:40"]
[Board "60"]

1. d4 {[%clk 0:03:00]}  Nf6 {[%clk 0:02:59]} 2. c4 {[%clk 0:03:01]}  e6 {[%clk 0:02:59]} 3. g3 {[%clk 0:03:01]}  d5 {[%clk 0:02:51]} 4. Bg2 {[%clk 0:03:01]}  Bb4+ {[%clk 0:02:51]} 5. Nd2 {[%clk 0:03:02]}  O-O {[%clk 0:02:50]} 6. Nf3 {[%clk 0:03:02]}  b6 {[%clk 0:02:49]} 7. O-O {[%clk 0:03:02]}  Bb7 {[%clk 0:02:49]} 8. a3 {[%clk 0:03:03]}  Be7 {[%clk 0:02:43]} 9. cxd5 {[%clk 0:03:03]}  exd5 {[%clk 0:02:44]} 10. b4 {[%clk 0:03:04]}  a5 {[%clk 0:02:43]} 11. b5 {[%clk 0:03:04]}  c5 {[%clk 0:02:41]} 12. Nb1 {[%clk 0:02:39]}  Nbd7 {[%clk 0:02:38]} 13. Nc3 {[%clk 0:02:19]}  Re8 {[%clk 0:02:33]} 14. Bb2 {[%clk 0:02:02]}  Bf8 {[%clk 0:02:27]} 15. Bh3 {[%clk 0:02:01]}  c4 {[%clk 0:02:26]} 16. Qc2 {[%clk 0:01:50]}  Ne4 {[%clk 0:02:17]} 17. e3 {[%clk 0:01:36]}  Ndf6 {[%clk 0:02:14]} 18. Nxe4 {[%clk 0:01:34]}  Nxe4 {[%clk 0:02:12]} 19. a4 {[%clk 0:01:23]}  Bc8 {[%clk 0:02:06]} 20. Bxc8 {[%clk 0:01:18]}  Qxc8 {[%clk 0:02:07]} 21. Ba3 {[%clk 0:01:16]}  Bxa3 {[%clk 0:02:02]} 22. Rxa3 {[%clk 0:01:17]}  Qh3 {[%clk 0:02:00]} 23. Re1 {[%clk 0:00:53]}  Re6 {[%clk 0:01:55]} 24. Qe2 {[%clk 0:00:52]}  Rf6 {[%clk 0:01:53]} 25. Rf1 {[%clk 0:00:43]}  Rh6 {[%clk 0:01:49]} 26. Re1 {[%clk 0:00:39]}  Ng5 {[%clk 0:01:15]} 27. Qd1 {[%clk 0:00:39]}  Ne4 {[%clk 0:00:47]} 28. Ra1 {[%clk 0:00:22]}  Re8 {[%clk 0:00:46]} 29. Qc2 {[%clk 0:00:10]}  Ree6 {[%clk 0:00:43]} 30. Rf1 {[%clk 0:00:03]}  Ref6 {[%clk 0:00:41]} 31. Qe2 {[%clk 0:00:02]}  Rxf3 {[%clk 0:00:41]} 32. Qxf3 {[%clk 0:00:03]}  Qxh2# {[%clk 0:00:40]} 0-1


[Site "https://www.chess.com"]

[Event "Titled Tuesday Blitz November 07 Early 2023"]
[White "Elsa167"]
[Black "Gubajdullin, Alexei"]
[BlackFideId "4141202"]
[WhiteElo "2982"]
[BlackElo "2633"]
[Result "1/2-1/2"]
[Round "5"]
[TimeControl "180+1"]
[Date "2023.11.07"]
[WhiteClock "0:00:04"]
[BlackClock "0:00:17"]
[Board "63"]

1. d4 {[%clk 0:03:00]}  Nf6 {[%clk 0:02:59]} 2. c4 {[%clk 0:03:01]}  g6 {[%clk 0:03:00]} 3. Nc3 {[%clk 0:03:01]}  Bg7 {[%clk 0:03:00]} 4. e4 {[%clk 0:03:02]}  d6 {[%clk 0:03:00]} 5. h3 {[%clk 0:03:02]}  O-O {[%clk 0:03:01]} 6. Be3 {[%clk 0:03:03]}  Na6 {[%clk 0:03:01]} 7. g4 {[%clk 0:03:03]}  e5 {[%clk 0:03:01]} 8. d5 {[%clk 0:03:03]}  Nc5 {[%clk 0:03:01]} 9. f3 {[%clk 0:03:04]}  a5 {[%clk 0:03:02]} 10. Qd2 {[%clk 0:03:04]}  c6 {[%clk 0:02:58]} 11. Nge2 {[%clk 0:03:04]}  cxd5 {[%clk 0:02:58]} 12. cxd5 {[%clk 0:03:05]}  a4 {[%clk 0:02:58]} 13. Ng3 {[%clk 0:03:05]}  Qa5 {[%clk 0:02:55]} 14. h4 {[%clk 0:03:04]}  Bd7 {[%clk 0:02:44]} 15. h5 {[%clk 0:03:02]}  Rfc8 {[%clk 0:02:44]} 16. hxg6 {[%clk 0:03:00]}  fxg6 {[%clk 0:02:44]} 17. g5 {[%clk 0:03:00]}  Nh5 {[%clk 0:02:38]} 18. Nxh5 {[%clk 0:02:58]}  gxh5 {[%clk 0:02:38]} 19. Rb1 {[%clk 0:02:35]}  Be8 {[%clk 0:02:31]} 20. Bh3 {[%clk 0:02:32]}  Rc7 {[%clk 0:02:28]} 21. Bf5 {[%clk 0:02:15]}  Qa6 {[%clk 0:02:20]} 22. Qe2 {[%clk 0:02:01]}  Nd3+ {[%clk 0:02:20]} 23. Kd2 {[%clk 0:01:47]}  Nf4 {[%clk 0:02:12]} 24. Qxa6 {[%clk 0:01:47]}  bxa6 {[%clk 0:02:04]} 25. Rhc1 {[%clk 0:01:29]}  Rb8 {[%clk 0:01:59]} 26. Nd1 {[%clk 0:01:12]}  Rcb7 {[%clk 0:01:57]} 27. Rc2 {[%clk 0:01:06]}  Bg6 {[%clk 0:01:45]} 28. Bc8 {[%clk 0:00:43]}  Re7 {[%clk 0:01:10]} 29. Rbc1 {[%clk 0:00:40]}  h4 {[%clk 0:01:07]} 30. Nf2 {[%clk 0:00:36]}  h3 {[%clk 0:01:06]} 31. Nxh3 {[%clk 0:00:33]}  Nxh3 {[%clk 0:00:48]} 32. Bxh3 {[%clk 0:00:32]}  Reb7 {[%clk 0:00:48]} 33. Be6+ {[%clk 0:00:26]}  Kf8 {[%clk 0:00:47]} 34. Rc8+ {[%clk 0:00:26]}  Rxc8 {[%clk 0:00:46]} 35. Rxc8+ {[%clk 0:00:27]}  Ke7 {[%clk 0:00:47]} 36. Kc2 {[%clk 0:00:20]}  a3 {[%clk 0:00:39]} 37. bxa3 {[%clk 0:00:19]}  Be8 {[%clk 0:00:36]} 38. Ra8 {[%clk 0:00:12]}  Ba4+ {[%clk 0:00:34]} 39. Kc1 {[%clk 0:00:12]}  Rc7+ {[%clk 0:00:33]} 40. Kd2 {[%clk 0:00:11]}  Bb5 {[%clk 0:00:31]} 41. Ra7 {[%clk 0:00:11]}  Rxa7 {[%clk 0:00:30]} 42. Bxa7 {[%clk 0:00:12]}  h6 {[%clk 0:00:29]} 43. gxh6 {[%clk 0:00:05]}  Bxh6+ {[%clk 0:00:28]} 44. Be3 {[%clk 0:00:06]}  Bxe3+ {[%clk 0:00:25]} 45. Kxe3 {[%clk 0:00:07]}  a5 {[%clk 0:00:24]} 46. Kd2 {[%clk 0:00:05]}  Kf6 {[%clk 0:00:23]} 47. Kc3 {[%clk 0:00:05]}  Kg5 {[%clk 0:00:22]} 48. Bg4 {[%clk 0:00:03]}  Kf4 {[%clk 0:00:22]} 49. Kd2 {[%clk 0:00:04]}  Be8 {[%clk 0:00:20]} 50. Ke2 {[%clk 0:00:04]}  Bb5+ {[%clk 0:00:20]} 51. Kf2 {[%clk 0:00:04]}  Bc4 {[%clk 0:00:20]} 52. Bh3 {[%clk 0:00:05]}  Bxa2 {[%clk 0:00:19]} 53. Bf1 {[%clk 0:00:05]}  Bb3 {[%clk 0:00:19]} 54. Be2 {[%clk 0:00:06]}  Ba4 {[%clk 0:00:19]} 55. Bf1 {[%clk 0:00:05]}  Bd7 {[%clk 0:00:18]} 56. Ba6 {[%clk 0:00:05]}  Ba4 {[%clk 0:00:18]} 57. Be2 {[%clk 0:00:05]}  Bd7 {[%clk 0:00:18]} 58. Bf1 {[%clk 0:00:05]}  Ba4 {[%clk 0:00:18]} 59. Bh3 {[%clk 0:00:05]}  Bb5 {[%clk 0:00:18]} 60. Bg4 {[%clk 0:00:05]}  Ba4 {[%clk 0:00:18]} 61. Ke2 {[%clk 0:00:05]}  Bb5+ {[%clk 0:00:18]} 62. Kd2 {[%clk 0:00:05]}  Ba6 {[%clk 0:00:18]} 63. Bh5 {[%clk 0:00:05]}  Bb5 {[%clk 0:00:18]} 64. Bg4 {[%clk 0:00:05]}  Ba6 {[%clk 0:00:18]} 65. Bh5 {[%clk 0:00:04]}  Bb5 {[%clk 0:00:17]} 66. Bg4 {[%clk 0:00:04]} 1/2-1/2


[Site "https://www.chess.com"]

[Event "Titled Tuesday Blitz November 07 Early 2023"]
[White "Yeletsky, Ivan"]
[Black "Ambartsumova, Karina"]
[WhiteFideId "24180327"]
[BlackFideId "4166299"]
[WhiteElo "2941"]
[BlackElo "2613"]
[Result "1-0"]
[Round "5"]
[TimeControl "180+1"]
[Date "2023.11.07"]
[WhiteClock "0:00:06"]
[BlackClock "0:00:00"]
[Board "65"]

1. c4 {[%clk 0:03:00]}  e5 {[%clk 0:02:59]} 2. g3 {[%clk 0:03:00]}  d6 {[%clk 0:02:59]} 3. Bg2 {[%clk 0:03:01]}  f6 {[%clk 0:03:00]} 4. Bf1 {[%clk 0:02:59]}  f5 {[%clk 0:02:59]} 5. Bg2 {[%clk 0:02:59]}  Nf6 {[%clk 0:03:00]} 6. Nc3 {[%clk 0:02:59]}  Be7 {[%clk 0:02:58]} 7. d4 {[%clk 0:02:58]}  O-O {[%clk 0:02:51]} 8. h4 {[%clk 0:02:53]}  Nc6 {[%clk 0:02:43]} 9. Nf3 {[%clk 0:02:53]}  Bd7 {[%clk 0:02:26]} 10. d5 {[%clk 0:02:43]}  Nb8 {[%clk 0:02:24]} 11. e4 {[%clk 0:02:26]}  a5 {[%clk 0:02:04]} 12. Ng5 {[%clk 0:02:22]}  Na6 {[%clk 0:02:03]} 13. exf5 {[%clk 0:01:41]}  Bxf5 {[%clk 0:01:59]} 14. Bh3 {[%clk 0:01:42]}  Bxh3 {[%clk 0:01:49]} 15. Rxh3 {[%clk 0:01:42]}  Nc5 {[%clk 0:01:48]} 16. Be3 {[%clk 0:01:40]}  Qd7 {[%clk 0:01:49]} 17. Bxc5 {[%clk 0:01:34]}  dxc5 {[%clk 0:01:50]} 18. Qc2 {[%clk 0:01:20]}  a4 {[%clk 0:01:10]} 19. a3 {[%clk 0:01:07]}  Qg4 {[%clk 0:00:52]} 20. Qe2 {[%clk 0:00:36]}  Qf5 {[%clk 0:00:43]} 21. Rh1 {[%clk 0:00:26]}  Bd6 {[%clk 0:00:32]} 22. Nge4 {[%clk 0:00:18]}  Qd7 {[%clk 0:00:15]} 23. O-O-O {[%clk 0:00:19]}  Rae8 {[%clk 0:00:13]} 24. Rhg1 {[%clk 0:00:19]}  h5 {[%clk 0:00:04]} 25. Nxf6+ {[%clk 0:00:13]}  Rxf6 {[%clk 0:00:03]} 26. Ne4 {[%clk 0:00:13]}  Rf5 {[%clk 0:00:03]} 27. g4 {[%clk 0:00:10]}  hxg4 {[%clk 0:00:02]} 28. Rxg4 {[%clk 0:00:07]}  Ref8 {[%clk 0:00:02]} 29. Rdg1 {[%clk 0:00:08]}  R5f7 {[%clk 0:00:00]} 30. h5 {[%clk 0:00:06]} 1-0


[Site "https://www.chess.com"]

[Event "Titled Tuesday Blitz November 07 Early 2023"]
[White "Rostovtsev, Dmitry"]
[Black "Golubev, Mikhail"]
[WhiteFideId "34278320"]
[BlackFideId "14100983"]
[WhiteElo "2929"]
[BlackElo "2606"]
[Result "1-0"]
[Round "5"]
[TimeControl "180+1"]
[Date "2023.11.07"]
[WhiteClock "0:01:39"]
[BlackClock "0:00:01"]
[Board "68"]

1. d4 {[%clk 0:02:55]}  Nf6 {[%clk 0:02:59]} 2. c4 {[%clk 0:02:52]}  g6 {[%clk 0:02:58]} 3. Nc3 {[%clk 0:02:50]}  Bg7 {[%clk 0:02:59]} 4. e4 {[%clk 0:02:51]}  d6 {[%clk 0:03:00]} 5. f4 {[%clk 0:02:36]}  O-O {[%clk 0:02:59]} 6. Nf3 {[%clk 0:02:23]}  c5 {[%clk 0:03:00]} 7. d5 {[%clk 0:02:19]}  e6 {[%clk 0:02:59]} 8. e5 {[%clk 0:02:19]}  Ne8 {[%clk 0:02:37]} 9. Be3 {[%clk 0:02:16]}  exd5 {[%clk 0:02:23]} 10. cxd5 {[%clk 0:02:17]}  Bg4 {[%clk 0:02:23]} 11. h3 {[%clk 0:02:14]}  Bxf3 {[%clk 0:02:23]} 12. Qxf3 {[%clk 0:02:14]}  dxe5 {[%clk 0:02:23]} 13. Bxc5 {[%clk 0:02:12]}  Nd6 {[%clk 0:02:21]} 14. O-O-O {[%clk 0:02:12]}  Re8 {[%clk 0:01:53]} 15. fxe5 {[%clk 0:02:12]}  Bxe5 {[%clk 0:01:50]} 16. Kb1 {[%clk 0:02:13]}  Nd7 {[%clk 0:01:50]} 17. Bxd6 {[%clk 0:02:12]}  Bxd6 {[%clk 0:01:50]} 18. Bb5 {[%clk 0:02:13]}  Ne5 {[%clk 0:01:38]} 19. Qf2 {[%clk 0:02:07]}  Rf8 {[%clk 0:01:38]} 20. h4 {[%clk 0:02:04]}  f5 {[%clk 0:01:31]} 21. h5 {[%clk 0:02:03]}  g5 {[%clk 0:01:32]} 22. h6 {[%clk 0:01:57]}  a6 {[%clk 0:01:27]} 23. Ba4 {[%clk 0:01:56]}  b5 {[%clk 0:01:22]} 24. Bc2 {[%clk 0:01:55]}  Qf6 {[%clk 0:00:51]} 25. Rdf1 {[%clk 0:01:54]}  Qe7 {[%clk 0:00:13]} 26. Bxf5 {[%clk 0:01:53]}  Kh8 {[%clk 0:00:10]} 27. Ne4 {[%clk 0:01:51]}  Rf7 {[%clk 0:00:09]} 28. Qd4 {[%clk 0:01:48]}  Raf8 {[%clk 0:00:07]} 29. g4 {[%clk 0:01:49]}  Kg8 {[%clk 0:00:06]} 30. Be6 {[%clk 0:01:37]}  Qxe6 {[%clk 0:00:05]} 31. dxe6 {[%clk 0:01:37]}  Rxf1+ {[%clk 0:00:05]} 32. Rxf1 {[%clk 0:01:38]}  Rxf1+ {[%clk 0:00:01]} 33. Kc2 {[%clk 0:01:39]} 1-0


[Site "https://www.chess.com"]

[Event "Titled Tuesday Blitz November 07 Early 2023"]
[White "Demin, Vladimir"]
[Black "Liyanage, Ranindu Dilshan"]
[WhiteFideId "4167457"]
[BlackFideId "9915834"]
[WhiteElo "2550"]
[BlackElo "2781"]
[Result "1-0"]
[Round "5"]
[TimeControl "180+1"]
[Date "2023.11.07"]
[WhiteClock "0:00:03"]
[BlackClock "0:00:07"]
[Board "72"]

1. d4 {[%clk 0:03:00]}  d5 {[%clk 0:02:54]} 2. Nc3 {[%clk 0:02:59]}  e6 {[%clk 0:02:54]} 3. e4 {[%clk 0:02:56]}  Nf6 {[%clk 0:02:53]} 4. Bg5 {[%clk 0:02:47]}  Bb4 {[%clk 0:02:52]} 5. e5 {[%clk 0:02:45]}  h6 {[%clk 0:02:52]} 6. Bd2 {[%clk 0:02:45]}  Bxc3 {[%clk 0:02:50]} 7. bxc3 {[%clk 0:02:46]}  Ne4 {[%clk 0:02:50]} 8. Bc1 {[%clk 0:02:44]}  c5 {[%clk 0:02:48]} 9. Ne2 {[%clk 0:02:33]}  Qa5 {[%clk 0:02:38]} 10. f3 {[%clk 0:02:22]}  Nxc3 {[%clk 0:02:25]} 11. Qd2 {[%clk 0:02:20]}  cxd4 {[%clk 0:02:19]} 12. Nxd4 {[%clk 0:02:20]}  Nc6 {[%clk 0:01:59]} 13. Nb3 {[%clk 0:01:46]}  Qb4 {[%clk 0:01:35]} 14. a3 {[%clk 0:01:30]}  Qh4+ {[%clk 0:01:29]} 15. g3 {[%clk 0:01:29]}  Qh5 {[%clk 0:01:30]} 16. Qxc3 {[%clk 0:01:28]}  Nxe5 {[%clk 0:01:30]} 17. Be2 {[%clk 0:01:22]}  Ng6 {[%clk 0:01:08]} 18. Bb2 {[%clk 0:00:56]}  Bd7 {[%clk 0:01:08]} 19. f4 {[%clk 0:00:40]}  Qf5 {[%clk 0:01:04]} 20. Bd3 {[%clk 0:00:33]}  Qg4 {[%clk 0:01:00]} 21. Rf1 {[%clk 0:00:23]}  Rg8 {[%clk 0:00:53]} 22. Nd4 {[%clk 0:00:19]}  Rc8 {[%clk 0:00:51]} 23. Qb4 {[%clk 0:00:15]}  e5 {[%clk 0:00:43]} 24. Nb5 {[%clk 0:00:12]}  Kd8 {[%clk 0:00:28]} 25. Nd6 {[%clk 0:00:08]}  Rb8 {[%clk 0:00:24]} 26. Nxf7+ {[%clk 0:00:06]}  Ke8 {[%clk 0:00:21]} 27. Nd6+ {[%clk 0:00:06]}  Kd8 {[%clk 0:00:21]} 28. Be2 {[%clk 0:00:06]}  Qh3 {[%clk 0:00:19]} 29. O-O-O {[%clk 0:00:06]}  d4 {[%clk 0:00:16]} 30. fxe5 {[%clk 0:00:05]}  Nxe5 {[%clk 0:00:15]} 31. Nf7+ {[%clk 0:00:05]}  Nxf7 {[%clk 0:00:15]} 32. Rxf7 {[%clk 0:00:06]}  Qe6 {[%clk 0:00:15]} 33. Bc4 {[%clk 0:00:05]}  Qe3+ {[%clk 0:00:15]} 34. Kb1 {[%clk 0:00:05]}  Rc8 {[%clk 0:00:12]} 35. Qd6 {[%clk 0:00:04]}  Rc7 {[%clk 0:00:12]} 36. Bb5 {[%clk 0:00:02]}  Qe8 {[%clk 0:00:10]} 37. Rxd7+ {[%clk 0:00:02]}  Rxd7 {[%clk 0:00:11]} 38. Qb8+ {[%clk 0:00:02]}  Ke7 {[%clk 0:00:09]} 39. Re1+ {[%clk 0:00:03]}  Kf7 {[%clk 0:00:08]} 40. Rxe8 {[%clk 0:00:03]}  Rxe8 {[%clk 0:00:09]} 41. Qf4+ {[%clk 0:00:04]}  Kg8 {[%clk 0:00:07]} 42. Bxd7 {[%clk 0:00:03]} 1-0


[Site "https://www.chess.com"]

[Event "Titled Tuesday Blitz November 07 Early 2023"]
[White "Iskusnyh, Sergei"]
[Black "Yeremyan_ChessMate"]
[WhiteFideId "4120027"]
[WhiteElo "2545"]
[BlackElo "2781"]
[Result "0-1"]
[Round "5"]
[TimeControl "180+1"]
[Date "2023.11.07"]
[WhiteClock "0:00:00"]
[BlackClock "0:00:07"]
[Board "73"]

1. d4 {[%clk 0:03:00]}  Nf6 {[%clk 0:02:58]} 2. c4 {[%clk 0:03:00]}  g6 {[%clk 0:02:55]} 3. g3 {[%clk 0:03:01]}  Bg7 {[%clk 0:02:55]} 4. Bg2 {[%clk 0:03:01]}  O-O {[%clk 0:02:56]} 5. Nc3 {[%clk 0:03:01]}  c6 {[%clk 0:02:57]} 6. e4 {[%clk 0:02:59]}  d5 {[%clk 0:02:57]} 7. e5 {[%clk 0:02:59]}  Ne4 {[%clk 0:02:57]} 8. cxd5 {[%clk 0:02:56]}  cxd5 {[%clk 0:02:57]} 9. Nge2 {[%clk 0:02:55]}  Nc6 {[%clk 0:02:57]} 10. O-O {[%clk 0:02:54]}  Nxc3 {[%clk 0:02:57]} 11. bxc3 {[%clk 0:02:53]}  b6 {[%clk 0:02:56]} 12. Nf4 {[%clk 0:02:42]}  e6 {[%clk 0:02:53]} 13. Qa4 {[%clk 0:02:27]}  Bb7 {[%clk 0:02:52]} 14. h4 {[%clk 0:02:22]}  Rc8 {[%clk 0:02:44]} 15. h5 {[%clk 0:01:59]}  Na5 {[%clk 0:02:40]} 16. hxg6 {[%clk 0:01:40]}  hxg6 {[%clk 0:02:41]} 17. Qc2 {[%clk 0:01:32]}  Qc7 {[%clk 0:02:30]} 18. Bd2 {[%clk 0:01:28]}  Nc4 {[%clk 0:02:30]} 19. Be1 {[%clk 0:01:28]}  b5 {[%clk 0:02:25]} 20. Bh3 {[%clk 0:01:25]}  Bh6 {[%clk 0:02:22]} 21. Nxe6 {[%clk 0:01:10]}  fxe6 {[%clk 0:02:03]} 22. Qxg6+ {[%clk 0:01:09]}  Qg7 {[%clk 0:02:03]} 23. Bxe6+ {[%clk 0:01:10]}  Kh8 {[%clk 0:02:03]} 24. Qh5 {[%clk 0:01:09]}  Rce8 {[%clk 0:01:52]} 25. Bh3 {[%clk 0:01:04]}  Kg8 {[%clk 0:01:33]} 26. a4 {[%clk 0:01:00]}  bxa4 {[%clk 0:01:08]} 27. Rxa4 {[%clk 0:01:00]}  a5 {[%clk 0:01:09]} 28. Ra2 {[%clk 0:00:54]}  Bc6 {[%clk 0:01:02]} 29. Bg2 {[%clk 0:00:49]}  a4 {[%clk 0:00:59]} 30. Rxa4 {[%clk 0:00:44]}  Ne3 {[%clk 0:00:38]} 31. fxe3 {[%clk 0:00:34]}  Rxf1+ {[%clk 0:00:36]} 32. Kxf1 {[%clk 0:00:33]}  Bxa4 {[%clk 0:00:28]} 33. Bxd5+ {[%clk 0:00:32]}  Kh8 {[%clk 0:00:28]} 34. Kg2 {[%clk 0:00:27]}  Rf8 {[%clk 0:00:25]} 35. c4 {[%clk 0:00:26]}  Be8 {[%clk 0:00:24]} 36. Qh4 {[%clk 0:00:24]}  Bg6 {[%clk 0:00:17]} 37. c5 {[%clk 0:00:23]}  Bh7 {[%clk 0:00:17]} 38. Bf3 {[%clk 0:00:21]}  Qf7 {[%clk 0:00:18]} 39. Qg4 {[%clk 0:00:21]}  Bf5 {[%clk 0:00:15]} 40. Qh5 {[%clk 0:00:20]}  Kg7 {[%clk 0:00:15]} 41. d5 {[%clk 0:00:19]}  Qxh5 {[%clk 0:00:11]} 42. Bxh5 {[%clk 0:00:18]}  Be4+ {[%clk 0:00:12]} 43. Kh3 {[%clk 0:00:17]}  Bxd5 {[%clk 0:00:12]} 44. Bc3 {[%clk 0:00:15]}  Be6+ {[%clk 0:00:11]} 45. Kg2 {[%clk 0:00:15]}  Bxe3 {[%clk 0:00:11]} 46. c6 {[%clk 0:00:14]}  Bd5+ {[%clk 0:00:10]} 47. Kh3 {[%clk 0:00:15]}  Kh6 {[%clk 0:00:10]} 48. Bg4 {[%clk 0:00:12]}  Bxc6 {[%clk 0:00:08]} 49. e6 {[%clk 0:00:13]}  Bc5 {[%clk 0:00:07]} 50. Bf5 {[%clk 0:00:00]}  Rxf5 {[%clk 0:00:07]} 0-1


[Site "https://www.chess.com"]

[Event "Titled Tuesday Blitz November 07 Early 2023"]
[White "Tikhonov, Viacheslav"]
[Black "Socko, Bartosz"]
[WhiteFideId "44196407"]
[BlackFideId "1107038"]
[WhiteElo "2536"]
[BlackElo "2779"]
[Result "1-0"]
[Round "5"]
[TimeControl "180+1"]
[Date "2023.11.07"]
[WhiteClock "0:00:22"]
[BlackClock "0:00:40"]
[Board "74"]

1. d4 {[%clk 0:03:00]}  Nf6 {[%clk 0:02:59]} 2. c4 {[%clk 0:03:01]}  g6 {[%clk 0:02:59]} 3. Nc3 {[%clk 0:03:00]}  Bg7 {[%clk 0:02:59]} 4. e4 {[%clk 0:03:00]}  O-O {[%clk 0:02:59]} 5. Be2 {[%clk 0:03:01]}  d6 {[%clk 0:03:00]} 6. h4 {[%clk 0:03:02]}  h5 {[%clk 0:02:59]} 7. Bg5 {[%clk 0:02:51]}  c5 {[%clk 0:02:59]} 8. d5 {[%clk 0:02:49]}  b5 {[%clk 0:02:59]} 9. cxb5 {[%clk 0:02:47]}  a6 {[%clk 0:03:00]} 10. a4 {[%clk 0:02:48]}  Qa5 {[%clk 0:02:57]} 11. Bd2 {[%clk 0:02:40]}  axb5 {[%clk 0:02:52]} 12. Nxb5 {[%clk 0:02:34]}  Qb6 {[%clk 0:02:52]} 13. Qc2 {[%clk 0:02:31]}  Ba6 {[%clk 0:02:46]} 14. Ra3 {[%clk 0:02:26]}  Nbd7 {[%clk 0:02:39]} 15. Nf3 {[%clk 0:02:25]}  Ng4 {[%clk 0:02:31]} 16. Bc3 {[%clk 0:02:24]}  Bxb5 {[%clk 0:02:20]} 17. Bxb5 {[%clk 0:02:22]}  Bxc3+ {[%clk 0:02:10]} 18. Qxc3 {[%clk 0:02:23]}  Ndf6 {[%clk 0:02:08]} 19. Nd2 {[%clk 0:02:14]}  Rfc8 {[%clk 0:01:51]} 20. O-O {[%clk 0:02:08]}  Ne5 {[%clk 0:01:48]} 21. Nc4 {[%clk 0:01:44]}  Nxc4 {[%clk 0:01:47]} 22. Qxc4 {[%clk 0:01:45]}  Qa5 {[%clk 0:01:39]} 23. Re3 {[%clk 0:01:31]}  Ng4 {[%clk 0:01:36]} 24. Rg3 {[%clk 0:01:29]}  Ne5 {[%clk 0:01:35]} 25. Qe2 {[%clk 0:01:26]}  c4 {[%clk 0:01:31]} 26. Qxh5 {[%clk 0:01:09]}  Qd2 {[%clk 0:01:31]} 27. f4 {[%clk 0:01:05]}  Qd4+ {[%clk 0:01:17]} 28. Kh1 {[%clk 0:00:53]}  Nd3 {[%clk 0:01:18]} 29. f5 {[%clk 0:00:47]}  Qe5 {[%clk 0:01:02]} 30. Rg5 {[%clk 0:00:33]}  Qh8 {[%clk 0:01:01]} 31. fxg6 {[%clk 0:00:29]}  f6 {[%clk 0:01:01]} 32. Qxh8+ {[%clk 0:00:23]}  Kxh8 {[%clk 0:01:02]} 33. Rh5+ {[%clk 0:00:22]}  Kg7 {[%clk 0:01:02]} 34. Rh7+ {[%clk 0:00:22]}  Kxg6 {[%clk 0:01:02]} 35. Rxe7 {[%clk 0:00:23]}  Nxb2 {[%clk 0:00:54]} 36. Bd7 {[%clk 0:00:23]}  c3 {[%clk 0:00:40]} 37. Bf5+ {[%clk 0:00:22]} 1-0


[Site "https://www.chess.com"]